bitfinex-derivatives/quotes_ETHF0:USTF0_20251006
["timestamp","ask_amount","ask_price","bid_price","bid_amount"]
[1759750459227,0.61519,4576.1,4576.0,1.1964]
[1759750459934,0.92249,4576.1,4576.0,1.19865458]
[1759750460138,1.21849,4576.1,4576.0,1.19865458]
[1759750460542,0.92249,4576.1,4576.0,1.19865458]
[1759750461137,1.21849,4576.1,4576.0,1.19865458]
[1759750461540,1.65129,4576.1,4576.0,1.19865458]
[1759750461744,4.43876793,4576.1,4576.0,0.00225458]
[1759750462841,4.04557793,4576.1,4576.0,0.00225458]
[1759750465440,3.82357793,4576.1,4576.0,0.00225458]
[1759750465650,3.82357793,4576.1,4576.0,0.43765458]
[1759750465838,38.13557793,4576.1,4576.0,0.43765458]
[1759750466038,3.39077793,4576.1,4576.0,1.19555458]
[1759750466336,3.2078,4576.3,4576.1,0.4354]
[1759750466546,3.2078,4576.3,4576.2,0.588]
[1759750466746,3.4308,4576.3,4576.2,1.0234]
[1759750467041,3.7381,4576.3,4576.2,1.0234]
[1759750468037,3.5151,4576.3,4576.2,1.0234]
[1759750468441,3.2078,4576.8,4576.5,0.1699]
[1759750468744,3.2078,4576.8,4576.7,1.0234]
[1759750469042,0.4328,4577.3,4577.0,0.1699]
[1759750469234,0.3073,4577.1,4577.0,0.7579]
[1759750469637,0.3073,4577.1,4577.0,1.1933]
[1759750469842,3.20943008,4577.4,4577.1,0.4354]
[1759750470042,0.00163008,4577.4,4577.3,1.0234]
[1759750471550,0.00163008,4577.4,4577.3,6.0234]
[1759750472847,0.3073,4578.6,4578.5,1.1933]
[1759750473052,0.4328,4579.1,4578.5,0.7579]
[1759750473354,0.6033,4579.1,4579.0,1.1933]
[1759750473542,0.296,4579.2,4579.1,0.7453]
[1759750473746,0.60594991,4579.2,4579.1,1.0234]
[1759750474247,4.3355388,4579.2,4578.6,0.4354]
[1759750474442,1.49431211,4579.1,4578.5,0.1699]
[1759750474644,0.296,4578.2,4578.1,0.7319]
[1759750474845,0.296,4578.2,4578.1,1.0334]
[1759750475047,1.0272,4578.2,4578.1,0.7319]
[1759750475246,1.42021,4578.2,4577.6,0.4248]
[1759750475449,1.0272,4577.7,4577.6,0.7319]
[1759750475852,0.6026,4577.7,4577.6,0.7319]
[1759750476053,1.07007303,4577.7,4577.6,0.7319]
[1759750476351,1.49467303,4577.7,4577.6,0.7319]
[1759750476948,0.76347303,4577.7,4577.6,1.0334]
[1759750477245,0.46747303,4577.7,4577.6,1.0334]
[1759750477440,3.2078,4577.8,4577.7,0.4248]
[1759750477647,3.97185559,4577.8,4577.7,1.0334]
[1759750477847,4.27845559,4577.8,4577.7,1.0334]
[1759750478042,4.27845559,4577.8,4577.7,0.7319]
[1759750478248,4.27845559,4577.8,4577.7,1.0334]
[1759750478441,3.97185559,4577.8,4577.7,1.0334]
[1759750478648,3.67585559,4577.8,4577.7,1.0334]
[1759750479346,3.97185559,4577.8,4577.7,1.0334]
[1759750479552,4.27845559,4577.8,4577.7,1.0334]
[1759750480847,1.07065559,4577.8,4577.7,1.0334]
[1759750481250,0.46805559,4577.8,4577.7,1.0334]
[1759750481751,0.6026,4578.5,4578.4,1.0334]
[1759750482051,1.07127237,4578.5,4578.4,1.0334]
[1759750482461,0.46867237,4578.5,4578.4,1.0334]
[1759750483150,3.2078,4579.0,4578.4,1.0334]
[1759750483352,0.76448117,4578.9,4578.8,1.0334]
[1759750483947,1.07108117,4578.9,4578.8,0.7319]
[1759750484153,1.07108117,4578.9,4578.0,3.388]
[1759750484154,0.6026,4578.2,4578.1,0.7319]
[1759750484350,1.0272,4578.2,4578.1,0.7319]
[1759750484550,0.6026,4578.2,4578.1,0.7319]
[1759750484746,0.6026,4578.2,4578.1,1.0334]
[1759750485446,1.0272,4578.2,4577.6,0.4248]
[1759750485757,1.0272,4578.2,4578.1,0.7319]
[1759750485960,0.6026,4578.2,4578.1,0.7319]
[1759750486658,0.6026,4578.2,4578.1,1.0334]
[1759750487155,0.81755,4578.9,4578.1,1.0334]
[1759750487357,0.46822584,4578.8,4578.2,0.4248]
[1759750487558,1.07082584,4578.7,4578.6,0.7319]
[1759750487855,3.91139126,4578.7,4578.6,0.7319]
[1759750488252,1.07082584,4578.7,4578.6,1.0131]
[1759750488654,3.2078,4579.0,4578.6,1.0131]
[1759750488854,0.69336991,4579.2,4579.1,0.5751]
[1759750489052,1.88097043,4579.2,4579.1,0.722]
[1759750489555,0.2978,4578.6,4578.5,1.176]
[1759750490052,1.01994991,4579.2,4579.1,0.2939]
[1759750490257,1.07062791,4579.2,4579.1,1.0032]
[1759750490658,0.60254991,4579.2,4579.1,1.0032]
[1759750491053,0.30044991,4579.2,4579.1,1.0032]
[1759750491859,0.00264991,4579.2,4579.1,1.39613]
[1759750492364,0.2978,4580.1,4580.0,1.176]
[1759750492862,3.8077,4580.7,4580.6,0.722]
[1759750493157,1.06782876,4580.7,4580.6,1.0032]
[1759750493358,0.29989327,4580.7,4580.6,1.00555821]
[1759750493954,0.00209327,4580.7,4580.6,1.00555821]
[1759750494663,1.01939327,4580.7,4580.6,0.72435821]
[1759750494851,4.22719327,4580.7,4580.6,0.00235821]
[1759750495156,3.80979327,4580.7,4580.6,0.72435821]
[1759750495361,3.80979327,4580.7,4580.6,1.00555821]
[1759750495563,12.45900555,4580.7,4580.6,0.00235821]
[1759750495764,12.92694444,4580.7,4580.6,0.00235821]
[1759750495960,0.5999,4579.6,4579.5,0.8948]
[1759750496166,0.5999,4579.6,4579.5,1.176]
[1759750496659,0.81025,4580.1,4579.5,0.8948]
[1759750496860,0.4174,4580.1,4579.6,0.4281]
[1759750497056,0.4174,4580.0,4579.6,0.0020078]
[1759750497360,0.5999,4579.8,4579.7,0.722]
[1759750497554,0.5999,4579.8,4579.7,1.0032]
[1759750498866,3.8077,4580.2,4580.1,0.2939]
[1759750499060,0.5999,4579.8,4579.7,0.4281]
[1759750499363,1.0173,4579.7,4579.6,0.0020078]
[1759750499554,1.48633144,4579.7,4579.6,0.7240078]
[1759750499863,1.48633144,4579.7,4579.6,0.4301078]
[1759750500463,0.39295,4578.9,4578.7,0.4281]
[1759750500664,0.39295,4578.9,4578.0,3.3806]
[1759750500665,1.0173,4578.6,4578.5,0.4281]
[1759750500859,0.5999,4578.6,4578.5,1.176]
[1759750501054,0.5999,4578.6,4578.5,0.8948]
[1759750501258,0.4174,4578.5,4578.1,0.4281]
[1759750501460,0.4174,4578.9,4578.1,0.57711203]
[1759750501667,0.46945386,4578.8,4578.2,0.4281]
[1759750501859,1.06935386,4578.7,4578.6,0.2939]
[1759750502054,3.95577672,4578.7,4578.6,0.722]
[1759750502459,0.4174,4579.4,4578.6,0.5751]
[1759750502759,0.46947344,4579.3,4579.2,1.0032]
[1759750503160,3.2078,4580.1,4579.3,0.4281]
[1759750503366,0.76719269,4580.0,4579.9,1.0032]
[1759750503561,3.65732999,4580.0,4579.9,1.0032]
[1759750503966,3.4900373,4580.0,4579.9,1.0032]
[1759750504163,3.4900373,4580.0,4579.9,0.722]
[1759750504374,2.8901373,4580.0,4579.9,1.0032]
[1759750504868,3.9074373,4580.0,4579.9,0.722]
[1759750505361,3.2078,4580.2,4579.9,1.0032]
[1759750505562,0.3928,4580.6,4580.0,0.7479]
[1759750505862,0.3928,4580.6,4579.6,3.60068]
[1759750505863,0.4174,4580.0,4579.6,3.2078]
[1759750506060,0.4174,4580.4,4579.6,3.7829]
[1759750506260,1.06916774,4580.3,4580.2,1.0032]
[1759750506669,1.48656774,4580.3,4580.2,0.722]
[1759750506965,1.06916774,4580.3,4580.2,1.0032]
[1759750508068,1.06916774,4580.3,4580.2,6.39603]
[1759750508069,0.46926774,4580.3,4580.2,6.39603]
[1759750508261,0.00209327,4580.7,4580.6,1.0032]
[1759750508965,0.00209327,4580.7,4580.6,6.0032]
[1759750509173,0.00209327,4580.7,4580.6,9.211]
[1759750510764,3.2078,4581.7,4581.5,0.1728]
[1759750510966,0.2978,4581.8,4581.7,1.0032]
[1759750511267,1.06897063,4581.8,4581.5,0.6009]
[1759750511580,0.2978,4581.3,4581.2,1.0032]
[1759750511785,0.29952606,4581.3,4581.2,1.0051135]
[1759750512079,0.00172606,4581.3,4581.2,1.0051135]
[1759750513086,1.01902606,4581.3,4581.2,0.4300135]
[1759750513383,4.32106118,4581.3,4581.2,0.0019135]
[1759750513881,3.60156118,4581.3,4581.2,1.0051135]
[1759750514086,0.76837572,4581.3,4581.2,1.0051135]
[1759750514283,0.47057572,4581.3,4581.2,1.0051135]
[1759750514582,0.29952606,4581.3,4581.2,1.0051135]
[1759750515181,0.60162606,4581.3,4581.2,1.0051135]
[1759750515486,1.48789575,4581.3,4581.2,0.4300135]
[1759750515677,1.48789575,4581.3,4581.2,0.0019135]
[1759750515881,1.48789575,4581.3,4581.2,0.4300135]
[1759750516280,1.48789575,4581.3,4581.2,0.0019135]
[1759750516483,4.38583098,4581.3,4581.2,0.0019135]
[1759750519082,4.36117098,4581.3,4581.2,0.7336135]
[1759750519279,3.36853098,4581.3,4581.2,1.0150135]
[1759750519482,0.47059575,4581.3,4581.2,1.0150135]
[1759750520088,1.03509575,4581.3,4581.2,1.0150135]
[1759750520588,0.74509575,4581.3,4581.2,1.0150135]
[1759750521182,1.43739575,4581.3,4581.2,0.7336135]
[1759750521385,0.74509575,4581.3,4581.2,1.0150135]
[1759750521581,0.47059575,4581.3,4581.2,1.0150135]
[1759750522794,0.00172606,4581.3,4581.2,1.0150135]
[1759750523695,0.00172606,4581.3,4581.2,6.0150135]
[1759750524790,0.00172606,4581.3,4581.2,6.4077635]
[1759750524982,0.00172606,4581.3,4581.2,1.0150135]
[1759750526092,0.4023,4582.6,4581.3,0.4387]
[1759750526286,0.4023,4582.6,4581.2,5.5763135]
[1759750526287,0.5645,4581.9,4581.8,0.7317]
[1759750526494,0.5645,4581.6,4581.5,0.9071]
[1759750526989,0.5645,4581.6,4581.5,1.1885]
[1759750527196,0.00177696,4581.6,4581.5,1.1885]
[1759750530506,0.00177696,4581.6,4581.5,6.1885]
[1759750533297,3.2078,4582.7,4581.5,6.1885]
[1759750533298,3.87492,4582.7,4582.6,1.0131]
[1759750533498,4.34426077,4582.7,4582.6,1.0131]
[1759750533794,3.95164077,4582.7,4582.6,1.0131]
[1759750534195,3.95369413,4582.7,4582.6,1.0131]
[1759750535097,0.74589413,4582.7,4582.6,1.0131]
[1759750535312,1.03589413,4582.7,4582.6,1.0131]
[1759750535895,1.42979413,4582.7,4582.6,0.7317]
[1759750537105,0.5639,4582.2,4582.1,3.6235]
[1759750537398,0.5639,4581.9,4581.8,0.2937]
[1759750537605,0.46934077,4581.9,4581.8,0.5801]
[1759750537803,0.46963468,4582.1,4582.0,0.7454]
[1759750538007,0.46963468,4582.1,4582.0,1.1611]
[1759750538204,1.03353468,4582.1,4582.0,1.1611]
[1759750538395,1.42743468,4582.1,4582.0,0.8747]
[1759750538601,1.3505,4581.7,4581.6,0.7094]
[1759750538794,1.3505,4581.7,4580.2,0.98207]
[1759750538795,0.9578,4581.4,4581.3,0.7094]
[1759750539002,1.42743468,4581.4,4581.3,0.7094]
[1759750539600,1.35054,4581.3,4580.7,3.60059]
[1759750539906,1.13137468,4581.3,4581.2,0.9977135]
[1759750540101,1.42627468,4581.3,4581.2,0.7113135]
[1759750540310,4.7147144,4581.3,4581.2,0.0019135]
[1759750540513,9.7147144,4581.3,4581.2,0.0019135]
[1759750540805,0.9578,4580.6,4580.5,0.4157]
[1759750541000,1.03353468,4580.6,4580.5,1.1611]
[1759750541202,4.27677548,4580.6,4580.5,0.8747]
[1759750541405,4.27677548,4580.6,4580.5,0.4157]
[1759750542103,0.269,4580.1,4580.0,0.1653]
[1759750542304,0.39277,4581.0,4580.5,1.13821]
[1759750542510,0.46980086,4580.9,4580.5,1.13821]
[1759750542704,0.46980086,4580.8,4580.7,0.5801]
[1759750542909,0.46980086,4580.8,4580.7,0.9958]
[1759750543108,0.73880086,4580.8,4580.7,0.9958]
[1759750543703,1.42760086,4580.8,4580.7,0.9958]
[1759750544615,1.03370086,4580.8,4580.7,0.9958]
[1759750545315,1.42760086,4580.8,4580.7,0.9958]
[1759750545506,0.39279,4580.7,4580.5,0.1653]
[1759750545712,0.95674,4580.1,4580.0,0.87673281]
[1759750545908,0.5639,4580.1,4580.0,1.16313281]
[1759750546102,0.269,4580.1,4580.0,1.16313281]
[1759750546303,0.9567,4580.6,4580.5,0.7454]
[1759750546503,1.4262996,4580.6,4580.5,0.7454]
[1759750546710,3.88693439,4580.6,4580.5,0.7454]
[1759750546911,3.60058,4580.9,4580.5,1.1611]
[1759750547116,0.73857935,4580.8,4580.7,0.5801]
[1759750547418,3.58755625,4580.8,4580.7,0.9958]
[1759750549015,4.26985625,4580.8,4580.7,0.6891]
[1759750549215,3.8002769,4580.8,4580.7,0.6891]
[1759750549515,3.8002769,4580.8,4580.7,0.4157]
[1759750550114,3.4128769,4580.8,4580.7,0.6891]
[1759750550415,3.8002769,4580.8,4580.7,0.4157]
[1759750550612,0.58,4580.3,4580.2,0.4085]
[1759750550819,1.36024,4580.1,4580.0,0.84923281]
[1759750551313,0.68172,4580.4,4580.3,0.5481]
[1759750551513,0.68172,4580.4,4580.3,0.9566]
[1759750552210,0.3874,4580.8,4580.3,0.9566]
[1759750552211,3.2078,4580.9,4580.3,0.9566]
[1759750552413,3.60058,4580.9,4580.7,0.4085]
[1759750552722,4.18058,4580.9,4580.8,0.9566]
[1759750553115,6.98605467,4580.9,4580.8,0.9566]
[1759750554214,0.58,4580.9,4580.8,0.9566]
[1759750554414,3.2078,4581.2,4581.0,0.1766]
[1759750554618,0.98174,4581.9,4581.0,0.1766]
[1759750554619,0.2889,4581.3,4581.2,0.2734]
[1759750554917,0.2889,4581.3,4580.0,3.37513281]
[1759750554918,0.97284,4580.1,4580.0,3.37513281]
[1759750555105,1.36024,4580.1,4580.0,0.57583281]
[1759750555310,1.36024,4580.1,4580.0,0.41053281]
[1759750555705,3.2078,4580.8,4580.0,0.41053281]
[1759750555706,0.68169,4580.7,4580.6,0.9566]
[1759750555911,0.39279,4580.7,4580.6,0.9566]
[1759750556108,0.39274,4581.3,4581.2,0.4085]
[1759750556317,0.97274,4581.3,4581.2,0.9566]
[1759750557407,0.39274,4581.3,4581.2,0.9566]
[1759750557926,0.97274,4581.3,4581.2,0.6819]
[1759750558115,1.36014,4581.3,4581.2,0.6819]
[1759750558416,1.36014,4581.3,4581.2,0.4085]
[1759750558612,1.36014,4581.3,4581.2,0.6819]
[1759750558805,1.36014,4581.3,4581.2,0.4085]
[1759750559211,1.82912193,4581.3,4581.2,0.4085]
[1759750560310,1.44172193,4581.3,4581.2,0.6819]
[1759750560819,1.82912193,4581.3,4581.2,0.6819]
[1759750562112,1.44172193,4581.3,4581.2,0.6819]
[1759750562412,1.15062193,4581.3,4581.2,0.9566]
[1759750563019,0.46898193,4581.3,4581.2,0.9566]
[1759750563519,0.39273,4581.4,4581.2,0.94084]
[1759750563708,0.39273,4581.4,4581.3,0.9566]
[1759750564121,0.86206212,4581.4,4581.3,0.9566]
[1759750564418,0.97276,4581.1,4581.0,0.5851]
[1759750564720,0.9728,4580.6,4580.5,0.45]
[1759750564925,1.82953212,4580.6,4580.5,0.2734]
[1759750565120,5.03733212,4580.6,4580.5,0.4085]
[1759750565317,0.0906,4580.0,4579.1,3.2078]
[1759750565516,0.58,4578.7,4578.6,0.6819]
[1759750565717,1.44229212,4578.7,4578.6,0.6819]
[1759750566018,1.15119212,4578.7,4578.6,0.9566]
[1759750566221,0.86229212,4578.7,4578.6,0.9566]
[1759750566425,0.86440565,4578.7,4578.6,0.95830406]
[1759750566620,1.15330565,4578.7,4578.6,0.95830406]
[1759750566824,1.44440565,4578.7,4578.6,0.95830406]
[1759750567125,1.44463446,4578.7,4578.6,0.95830406]
[1759750567427,1.44449166,4578.7,4578.6,0.95830406]
[1759750567628,1.44449318,4578.7,4578.6,0.95830406]
[1759750568128,1.44460073,4578.7,4578.6,0.95830406]
[1759750568328,0.00211353,4578.7,4578.6,9.16610406]
[1759750568629,0.68397353,4578.7,4578.6,4.16610406]
[1759750568826,0.97507353,4578.7,4578.6,0.95830406]
[1759750569934,0.00211353,4578.7,4578.6,0.95830406]
[1759750570122,0.00211353,4578.7,4578.6,1.35127406]
[1759750570522,0.00211353,4578.7,4578.6,0.95830406]
[1759750572527,3.2078,4580.0,4579.1,0.39293]
[1759750572724,3.2078,4580.0,4578.6,8.75760406]
[1759750572725,0.39291,4579.3,4579.2,0.9566]
[1759750573633,0.3952167,4579.3,4579.2,0.9566]
[1759750574031,4.18982,4580.6,4579.5,0.56949]
[1759750574231,1.44138137,4580.5,4580.4,0.6819]
[1759750574432,4.66644294,4580.5,4580.4,0.6819]
[1759750575032,4.6684147,4580.5,4580.4,0.6819]
[1759750575337,4.19986754,4580.5,4580.4,0.6819]
[1759750576637,4.19986754,4580.5,4580.4,0.4085]
[1759750576846,0.97284,4580.1,4580.0,0.8585]
[1759750577135,0.97284,4580.1,4579.5,1.1332]
[1759750577136,0.97288,4579.6,4579.5,1.1332]
[1759750578139,1.34568,4579.6,4579.5,0.4085]
[1759750579034,0.39293,4579.1,4579.0,0.8557]
[1759750579235,0.95493,4579.1,4579.0,0.8557]
[1759750579741,0.95493,4579.1,4579.0,1.1284]
[1759750580839,4.16268,4579.6,4579.5,0.1607]
[1759750581046,4.16268,4579.6,4579.5,1.1125]
[1759750581239,3.60068,4579.6,4579.5,1.1125]
[1759750581542,3.88068,4579.6,4579.5,1.1125]
[1759750581744,3.60068,4579.6,4579.5,1.1125]
[1759750582345,0.39288,4579.6,4579.5,1.1125]
[1759750582645,0.67288,4579.6,4579.5,1.1125]
[1759750583946,3.11382264,4579.6,4579.5,1.1125]
[1759750584138,3.60068,4579.7,4579.6,0.6791]
[1759750584341,3.60068,4579.7,4579.6,0.9518]
[1759750584644,3.88068,4579.7,4579.6,0.9518]
[1759750586043,4.16268,4579.7,4579.6,0.9518]
[1759750586949,4.16268,4579.7,4579.6,0.84212131]
[1759750588647,0.3728,4580.0,4579.6,0.84212131]
[1759750588648,0.39288,4579.8,4579.6,0.84212131]
[1759750588844,0.39288,4579.8,4579.6,0.5507]
[1759750589149,0.95488,4579.8,4579.7,0.9518]
[1759750589747,1.35728,4579.8,4579.7,0.6791]
[1759750590953,0.95488,4579.6,4579.5,0.8398]
[1759750591163,1.35728,4579.6,4579.5,0.8398]
[1759750591449,1.35728,4579.6,4579.5,0.6791]
[1759750591845,1.35728,4579.6,4579.0,0.1766]
[1759750591846,0.67293,4579.1,4579.0,1.1284]
[1759750593750,0.67293,4579.1,4579.0,1.52134]
[1759750593951,0.39293,4579.1,4579.0,1.52134]
[1759750595054,0.94136,4579.9,4579.8,0.6597]
[1759750595251,1.41151345,4579.9,4579.8,0.6597]
[1759750595451,1.82181345,4579.9,4579.8,0.6597]
[1759750596059,1.41151345,4579.9,4579.8,0.9376]
[1759750597060,1.35168,4579.6,4579.5,0.8301]
[1759750597960,0.94138,4579.6,4579.5,1.108]
[1759750598964,1.35168,4579.6,4579.5,1.108]
[1759750599162,1.82218712,4579.6,4579.5,1.108]
[1759750599359,1.82218712,4579.6,4579.5,0.9376]
[1759750599560,0.39293,4579.1,4579.0,0.1766]
[1759750599758,1.35173,4579.1,4579.0,0.4414]
[1759750599958,0.94146,4578.7,4578.6,0.54440406]
[1759750600260,1.82228554,4578.7,4578.6,0.93930406]
[1759750601158,1.82228554,4578.7,4578.6,0.66140406]
[1759750601863,1.82228554,4578.7,4578.6,0.00170406]
[1759750602060,4.69129474,4578.7,4578.6,0.00170406]
[1759750604059,4.69129474,4578.7,4578.6,0.39660406]
[1759750604665,4.69062573,4578.7,4578.6,0.39660406]
[1759750605265,4.69062573,4578.7,4578.6,0.00170406]
[1759750610070,4.69062573,4578.7,4578.6,0.67490406]
[1759750610270,4.69062573,4578.7,4578.6,0.00170406]
[1759750613667,0.2581,4577.5,4577.4,0.3876]
[1759750613874,0.2581,4577.5,4577.4,0.9578]
[1759750614559,0.519,4577.5,4577.4,0.9578]
[1759750614767,0.9301,4577.5,4577.4,0.9595514]
[1759750614960,0.9301,4577.5,4577.4,0.0017514]
[1759750614961,3.83918977,4577.5,4577.4,0.0017514]
[1759750615169,4.30811294,4577.5,4577.4,0.0017514]
[1759750616164,4.30811294,4577.5,4576.0,40.9645]
[1759750616165,0.91214,4576.6,4576.5,0.3876]
[1759750616370,0.91214,4576.6,4576.5,1.1223]
[1759750616674,3.72704731,4576.6,4576.5,1.1223]
[1759750616875,4.13814731,4576.6,4576.5,1.1223]
[1759750617170,0.65132,4575.7,4575.6,0.9578]
[1759750617375,0.65132,4575.7,4575.6,0.95962459]
[1759750617376,0.91222,4575.7,4575.6,0.95962459]
[1759750619073,1.32332,4575.7,4575.6,0.67502459]
[1759750619464,0.91222,4575.7,4575.6,0.95962459]
[1759750620872,4.53112,4575.7,4575.6,0.67502459]
[1759750621377,7.41325807,4575.7,4575.6,0.00182459]
[1759750621771,7.41325807,4575.7,4574.6,0.9578]
[1759750621772,0.2581,4574.7,4574.6,0.9578]
[1759750622069,0.65141,4574.7,4574.6,0.9578]
[1759750622273,0.2581,4574.7,4574.6,0.9578]
[1759750622674,0.2581,4574.7,4574.6,0.9598339]
[1759750623476,0.519,4574.7,4574.6,0.9598339]
[1759750624468,3.71757032,4574.7,4574.6,0.6752339]
[1759750626577,3.04557032,4574.7,4574.6,0.9598339]
[1759750626880,3.60107,4575.1,4575.0,0.1645]
[1759750627078,3.85917,4575.1,4575.0,1.1223]
[1759750627274,6.65298885,4575.1,4575.0,1.1223]
[1759750627479,6.91388885,4575.1,4575.0,1.1223]
[1759750628076,3.2078,4575.7,4575.1,0.3876]
[1759750628279,3.60102,4575.7,4575.6,0.3876]
[1759750628484,4.12002,4575.7,4575.6,0.9578]
[1759750628780,1.32337,4575.2,4575.1,0.2856]
[1759750628980,1.32337,4575.2,4575.1,0.6732]
[1759750629179,0.98319,4575.1,4574.6,0.0020339]
[1759750629380,0.65141,4574.7,4574.6,0.9598339]
[1759750629878,0.3933,4574.9,4574.6,0.9598339]
[1759750630086,0.91227,4575.1,4575.0,0.4501]
[1759750630385,1.3234,4574.8,4574.7,0.3876]
[1759750630780,4.11373254,4574.8,4574.6,0.0020339]
[1759750630981,4.1379,4574.7,4574.6,0.0020339]
[1759750631379,6.92823254,4574.7,4574.6,0.2876339]
[1759750633081,6.92823254,4574.7,4574.6,0.0020339]
[1759750633489,6.92823254,4574.7,4574.6,0.2876339]
[1759750633888,3.4659,4574.7,4574.6,0.9598339]
[1759750634085,0.2581,4574.7,4574.6,0.9598339]
[1759750634286,0.9301,4574.7,4574.6,0.9598339]
[1759750635593,0.9301,4574.7,4574.6,0.5722339]
[1759750635787,0.9301,4574.7,4574.6,0.9598339]
[1759750636390,0.4111,4575.0,4574.7,0.3876]
[1759750636585,0.4111,4575.0,4574.6,0.0020339]
[1759750636586,0.9301,4575.0,4574.9,0.9578]
[1759750636787,0.2581,4575.5,4575.4,0.9578]
[1759750636985,0.9301,4575.5,4575.4,0.9578]
[1759750637192,1.1009,4575.5,4575.4,0.9578]
[1759750637399,1.1009,4575.5,4575.4,0.5702]
[1759750638097,1.1009,4575.5,4575.4,0.2856]
[1759750639093,1.32499,4574.9,4574.8,3.7524]
[1759750639292,1.32499,4574.9,4574.8,0.2735]
[1759750639996,0.9317,4574.9,4574.8,0.6951]
[1759750640295,0.9317,4574.9,4574.8,0.9662]
[1759750640498,0.9317,4574.7,4574.6,0.5466339]
[1759750640699,0.9317,4574.7,4574.6,0.2755339]
[1759750641200,0.9317,4574.7,4574.6,0.9682339]
[1759750643298,0.9317,4574.7,4574.6,0.0020339]
[1759750643491,0.9317,4574.7,4574.6,0.5466339]
[1759750643800,0.9317,4574.7,4574.6,0.2755339]
[1759750644296,0.9317,4574.7,4574.6,0.0020339]
[1759750644500,1.40769177,4574.7,4574.6,0.0020339]
[1759750644900,4.31080583,4574.7,4574.6,0.0020339]
[1759750646199,7.51860583,4574.7,4574.6,0.0020339]
[1759750649209,7.04261406,4574.7,4574.6,0.0020339]
[1759750649399,8.68106065,4574.7,4574.6,0.0020339]
[1759750652302,8.68106065,4574.7,4574.6,0.2755339]
[1759750652500,7.51959226,4574.7,4574.6,0.9682339]
[1759750652807,7.91290226,4574.7,4574.6,0.9682339]
[1759750654704,6.98120226,4574.7,4574.6,0.9682339]
[1759750655116,6.58789226,4574.7,4574.6,0.9682339]
[1759750655609,7.50609226,4574.7,4574.6,0.5466339]
[1759750655810,7.50609226,4574.7,4574.6,0.0020339]
[1759750656614,7.50609226,4574.7,4574.6,0.2662339]
[1759750657415,7.50609226,4574.7,4574.6,0.0020339]
[1759750658109,7.50609226,4574.7,4574.6,0.9452339]
[1759750658309,7.89940226,4574.7,4574.6,0.9452339]
[1759750658509,4.69160226,4574.7,4574.6,0.9452339]
[1759750659419,4.29829226,4574.7,4574.6,0.9452339]
[1759750659617,4.29829226,4574.7,4574.6,0.0020339]
[1759750659618,7.50609226,4574.7,4574.6,0.0020339]
[1759750660513,7.50609226,4574.7,4574.6,0.2662339]
[1759750660710,4.29829226,4574.7,4574.6,0.0020339]
[1759750661614,4.29829226,4574.7,4574.6,0.2662339]
[1759750662318,4.29829226,4574.7,4574.6,0.9452339]
[1759750663011,4.29829226,4574.7,4574.6,0.5254339]
[1759750663212,4.69160226,4574.7,4574.6,0.5254339]
[1759750663413,4.29829226,4574.7,4574.6,0.9452339]
[1759750663613,4.69160226,4574.7,4574.6,0.9452339]
[1759750664413,4.69353551,4574.7,4574.6,0.9452339]
[1759750665220,0.9182,4574.7,4574.6,0.9452339]
[1759750665419,0.2768,4574.7,4574.6,0.9452339]
[1759750665620,0.6583,4574.7,4574.6,0.9452339]
[1759750665925,4.19096,4575.3,4574.6,0.9452339]
[1759750665926,0.9097,4575.3,4575.2,0.9432]
[1759750666109,1.38865324,4575.3,4575.2,0.9432]
[1759750666310,0.9097,4575.3,4575.2,0.9432]
[1759750666820,0.2683,4575.3,4575.2,0.9432]
[1759750667922,0.3815,4575.6,4575.2,0.9432]
[1759750667923,0.6724,4575.5,4575.4,0.9017]
[1759750668719,3.2078,4576.3,4576.0,0.1635]
[1759750668921,0.40915738,4576.6,4576.5,0.1635]
[1759750669112,0.00205738,4576.6,4576.5,1.0652]
[1759750669311,0.26735738,4576.6,4576.5,1.0652]
[1759750669723,0.67445738,4576.6,4576.5,1.0652]
[1759750670213,0.92775738,4576.6,4576.5,0.9017]
[1759750670417,0.5186,4576.1,4576.0,0.5246]
[1759750670724,0.9257,4576.1,4576.0,0.9017]
[1759750671321,0.5186,4576.1,4576.0,0.9017]
[1759750671514,0.6724,4576.4,4576.3,0.9017]
[1759750672020,0.6724,4576.4,4576.3,4.1095]
[1759750673230,0.2653,4576.4,4576.3,4.1095]
[1759750673523,0.26735738,4576.6,4576.5,1.0652]
[1759750673720,0.67445738,4576.6,4576.5,1.0652]
[1759750673921,0.00205738,4576.6,4576.5,1.0652]
[1759750675623,0.67445738,4576.6,4576.5,1.0652]
[1759750675825,0.92775738,4576.6,4576.5,0.9017]
[1759750676127,0.92775738,4576.6,4576.5,1.0652]
[1759750676321,0.00205738,4576.6,4576.5,6.0652]
[1759750677822,0.00205738,4576.6,4576.5,1.0652]
[1759750678825,0.4071,4577.5,4576.5,5.6881]
[1759750679023,0.6724,4577.5,4577.4,4.1095]
[1759750679425,0.2653,4577.5,4577.4,4.1095]
[1759750679831,0.26701809,4577.5,4577.4,4.1095]
[1759750680627,0.00171809,4577.5,4577.4,4.1095]
[1759750682327,0.26701809,4577.5,4577.4,4.1095]
[1759750682527,1.08071809,4577.5,4577.4,0.5246]
[1759750683328,0.92741809,4577.5,4577.4,0.9017]
[1759750683627,0.00171809,4577.5,4577.4,0.9017]
[1759750684626,0.4071,4578.5,4577.4,5.9017]
[1759750684926,1.3187,4578.3,4578.2,0.9017]
[1759750685133,1.3187,4578.3,4578.2,0.2632]
[1759750685327,0.9257,4578.3,4578.2,0.2632]
[1759750685728,0.928166,4578.3,4578.2,0.26545298]
[1759750687924,0.928166,4578.3,4578.2,0.90395298]
[1759750688234,0.267766,4578.3,4578.2,0.90395298]
[1759750688628,0.002466,4578.3,4578.2,0.90395298]
[1759750689128,0.4071,4579.2,4578.2,0.52685298]
[1759750689330,0.39291,4579.3,4579.1,1.29462]
[1759750689531,0.2653,4579.3,4579.2,1.29461]
[1759750690131,0.26758461,4579.3,4579.2,1.29461]
[1759750690640,0.26758461,4579.3,4579.2,0.9017]
[1759750690831,0.92798461,4579.3,4579.2,0.9017]